bitfinex/quotes_BTCUSD_20250129
["timestamp","ask_amount","ask_price","bid_price","bid_amount"]
[1738132787136,4.08328659,102750.0,102740.0,1.76322668]
[1738132787315,4.06382159,102750.0,102740.0,1.76322668]
[1738132787538,3.98978159,102750.0,102740.0,1.76322668]
[1738132787744,3.97031659,102750.0,102740.0,1.76322668]
[1738132788123,3.91524159,102750.0,102740.0,1.76322668]
[1738132788298,3.7819096,102750.0,102740.0,1.76322668]
[1738132789023,3.7624446,102750.0,102740.0,1.65322668]
[1738132789320,3.6845846,102750.0,102740.0,1.65322668]
[1738132789727,3.6845846,102750.0,102740.0,1.76322668]
[1738132789933,3.6845846,102750.0,102740.0,2.29712668]
[1738132790378,3.6651196,102750.0,102740.0,2.29712668]
[1738132790680,3.6456546,102750.0,102740.0,2.29712668]
[1738132792109,3.6067246,102750.0,102740.0,2.28808668]
[1738132792342,3.5677946,102750.0,102740.0,2.29704668]
[1738132792518,3.5483296,102750.0,102740.0,2.37442563]
[1738132792757,3.5483296,102750.0,102740.0,2.28338563]
[1738132793149,3.5093996,102750.0,102740.0,2.28338563]
[1738132793351,3.4510046,102750.0,102740.0,2.28338563]
[1738132793556,3.3817146,102750.0,102740.0,2.28338563]
[1738132794197,3.3233196,102750.0,102740.0,2.28338563]
[1738132794505,3.3038546,102750.0,102740.0,2.28338563]
[1738132794759,3.2843896,102750.0,102740.0,2.27442563]
[1738132794934,3.2843896,102750.0,102740.0,2.28334563]
[1738132795159,3.2259946,102750.0,102740.0,2.28334563]
[1738132795366,3.1870646,102750.0,102740.0,2.28334563]
[1738132795672,3.0969546,102750.0,102740.0,2.28334563]
[1738132796290,3.0580246,102750.0,102740.0,2.28334563]
[1738132796497,2.9996296,102750.0,102740.0,2.28334563]
[1738132797084,2.9801646,102750.0,102740.0,2.28334563]
[1738132797285,2.9412346,102750.0,102740.0,2.28334563]
[1738132797844,2.9217696,102750.0,102740.0,2.28334563]
[1738132798045,2.9023046,102750.0,102740.0,2.28334563]
[1738132798547,2.8471996,102750.0,102740.0,2.28334563]
[1738132798758,2.7350596,102750.0,102740.0,2.48584563]
[1738132798964,2.72157961,102750.0,102740.0,2.48584563]
[1738132799172,2.70211461,102750.0,102740.0,2.48584563]
[1738132799548,2.66318461,102750.0,102740.0,2.39950668]
[1738132800050,2.60969961,102750.0,102740.0,2.39950668]
[1738132800258,2.49655961,102750.0,102740.0,2.29700668]
[1738132801075,2.47709461,102750.0,102740.0,2.29700668]
[1738132801232,2.20785255,102750.0,102740.0,2.29700668]
[1738132801806,2.10304256,102750.0,102740.0,1.76310668]
[1738132802206,2.08357756,102750.0,102740.0,1.76310668]
[1738132802499,2.03918421,102750.0,102740.0,1.76310668]
[1738132802655,2.00025421,102750.0,102740.0,1.76310668]
[1738132803051,1.98078921,102750.0,102740.0,1.76310668]
[1738132803278,1.96132421,102750.0,102740.0,1.76310668]
[1738132803484,1.94185921,102750.0,102740.0,1.76310668]
[1738132804020,1.90292921,102750.0,102740.0,1.76310668]
[1738132804196,1.84453421,102750.0,102740.0,1.76310668]
[1738132804405,1.70925772,102750.0,102740.0,1.75910668]
[1738132804602,0.99136745,102750.0,102740.0,2.21836289]
[1738132804804,0.9528447,102750.0,102740.0,2.21836289]
[1738132804986,0.8734797,102750.0,102740.0,2.22098338]
[1738132805225,0.69074971,102750.0,102740.0,2.22098338]
[1738132805603,0.43669971,102750.0,102740.0,2.27944338]
[1738132805792,0.43669971,102750.0,102740.0,2.24968717]
[1738132805995,0.41723471,102750.0,102740.0,2.25268717]
[1738132806235,0.39776971,102750.0,102740.0,2.25268717]
[1738132806449,0.32675031,102750.0,102740.0,2.28244338]
[1738132806620,0.32675031,102750.0,102740.0,2.39493438]
[1738132807192,0.21171231,102750.0,102740.0,3.79703438]
[1738132807377,0.17925131,102750.0,102740.0,3.79703438]
[1738132807568,0.17925131,102750.0,102740.0,3.88348797]
[1738132808002,0.17925131,102750.0,102740.0,3.55328076]
[1738132808206,0.08192831,102750.0,102740.0,3.57028076]
[1738132808415,0.08192831,102750.0,102740.0,3.55028076]
[1738132809033,0.06246331,102750.0,102740.0,3.65278076]
[1738132809231,6.1e-07,102760.0,102750.0,0.18]
[1738132809444,4.89e-05,102760.0,102750.0,2.75855967]
[1738132809654,4.89e-05,102760.0,102750.0,2.76028068]
[1738132810056,9e-07,102760.0,102750.0,2.76028068]
[1738132810505,9e-07,102760.0,102750.0,2.76728068]
[1738132810708,9e-07,102760.0,102750.0,2.76928068]
[1738132813099,0.0561802,102760.0,102750.0,2.68194022]
[1738132813518,3e-07,102760.0,102750.0,2.68194022]
[1738132814014,0.0469423,102780.0,102770.0,0.348956]
[1738132814015,0.0001423,102780.0,102770.0,0.348956]
[1738132814176,0.00019057,102780.0,102770.0,3.10162154]
[1738132814380,0.00019057,102780.0,102770.0,3.10430282]
[1738132814591,0.00019057,102780.0,102770.0,3.19164328]
[1738132814975,0.04869057,102780.0,102770.0,3.19164328]
[1738132815331,0.04869057,102780.0,102770.0,3.11310282]
[1738132815571,0.04869057,102780.0,102770.0,3.18044328]
[1738132815770,0.04869057,102780.0,102770.0,3.20044328]
[1738132816089,0.04869057,102780.0,102770.0,3.20144328]
[1738132816295,0.04869057,102780.0,102770.0,3.20244328]
[1738132816556,0.12599057,102780.0,102770.0,3.20244328]
[1738132816688,0.12599057,102780.0,102770.0,3.18244328]
[1738132817116,0.12599057,102780.0,102770.0,3.05330282]
[1738132817322,0.12599057,102780.0,102770.0,2.91206282]
[1738132818104,0.12599057,102780.0,102770.0,2.99586296]
[1738132818876,0.12599057,102780.0,102770.0,3.16886296]
[1738132820075,0.12599057,102780.0,102770.0,3.18886296]
[1738132821196,0.12599057,102780.0,102770.0,3.10242154]
[1738132823037,0.12599057,102780.0,102770.0,3.27616342]
[1738132823569,0.12599057,102780.0,102770.0,3.28616342]
[1738132824400,0.12599057,102780.0,102770.0,3.30588312]
[1738132824557,0.12599057,102780.0,102770.0,3.30618174]
[1738132829807,0.04869057,102780.0,102770.0,3.30618174]
[1738132830146,0.04869057,102780.0,102770.0,3.40618174]
[1738132830353,0.04869057,102780.0,102770.0,3.44510774]
[1738132831749,0.04869057,102780.0,102770.0,3.45500808]
[1738132833119,0.12409057,102780.0,102770.0,3.35886762]
[1738132833346,0.12409057,102780.0,102770.0,3.2814662]
[1738132833542,0.12409057,102780.0,102770.0,3.36880666]
[1738132837810,0.12409057,102780.0,102770.0,3.25880666]
[1738132838174,0.12409057,102780.0,102770.0,3.1714662]
[1738132838624,0.12409057,102780.0,102770.0,3.1514662]
[1738132839055,0.12409057,102780.0,102770.0,2.9816665]
[1738132839232,0.12409057,102780.0,102770.0,3.1316665]
[1738132839433,0.12409057,102780.0,102770.0,3.1086665]
[1738132839647,0.12409057,102780.0,102770.0,3.0697405]
[1738132840065,0.12409057,102780.0,102770.0,3.0927405]
[1738132840639,0.12409057,102780.0,102770.0,3.0838205]
[1738132840850,0.12409057,102780.0,102770.0,3.0929405]
[1738132841806,0.12409057,102780.0,102770.0,3.0838205]
[1738132841990,0.12409057,102780.0,102770.0,3.0699805]
[1738132842656,0.12409057,102780.0,102770.0,3.07262816]
[1738132842866,0.12409057,102780.0,102770.0,2.81622736]
[1738132843074,0.12409057,102780.0,102770.0,2.67951136]
[1738132843300,0.12409057,102780.0,102770.0,2.97546736]
[1738132844150,0.12409057,102780.0,102770.0,3.25879644]
[1738132844372,0.12409057,102780.0,102770.0,1.78992093]
[1738132844591,0.12409057,102780.0,102770.0,1.70258047]
[1738132845038,0.12409057,102780.0,102770.0,1.70158047]
[1738132845453,0.12509057,102780.0,102770.0,1.70158047]
[1738132845899,0.12409057,102780.0,102770.0,1.70158047]
[1738132846131,0.12409057,102780.0,102770.0,1.70258047]
[1738132846303,0.12409057,102780.0,102770.0,1.70358047]
[1738132846756,0.12409057,102780.0,102770.0,1.70158047]
[1738132846914,0.12409057,102780.0,102770.0,1.70258047]
[1738132847080,0.12409057,102780.0,102770.0,1.70358047]
[1738132847282,0.12409057,102780.0,102770.0,1.70258047]
[1738132848132,0.12409057,102780.0,102770.0,1.70158047]
[1738132848356,0.12409057,102780.0,102770.0,1.70258047]
[1738132848557,0.12409057,102780.0,102770.0,1.70358047]
[1738132849987,0.12409057,102780.0,102770.0,1.70158047]
[1738132850208,0.12409057,102780.0,102770.0,1.66934047]
[1738132850422,0.12409057,102780.0,102770.0,1.67034047]
[1738132850603,0.12409057,102780.0,102770.0,1.67882047]
[1738132850783,0.12409057,102780.0,102770.0,1.66934047]
[1738132850983,0.12409057,102780.0,102770.0,1.67890047]
[1738132851369,0.12409057,102780.0,102770.0,1.67990047]
[1738132851836,0.12409057,102780.0,102770.0,1.67890047]
[1738132852157,0.12509057,102780.0,102770.0,1.67890047]
[1738132853234,0.12509057,102780.0,102770.0,1.67886047]
[1738132854129,0.12509057,102780.0,102770.0,1.59221231]
[1738132854577,0.12509057,102780.0,102770.0,1.58269231]
[1738132854784,0.12509057,102780.0,102770.0,1.20887585]
[1738132855128,0.12509057,102780.0,102770.0,1.20622819]
[1738132855352,0.12509057,102780.0,102770.0,1.34674819]
[1738132855548,0.12509057,102780.0,102770.0,1.35622819]
[1738132857088,0.12509057,102780.0,102770.0,1.32611538]
[1738132857671,0.12509057,102780.0,102770.0,1.41345584]
[1738132858081,0.12509057,102780.0,102770.0,1.55941184]
[1738132858762,0.12509057,102780.0,102770.0,1.58241184]
[1738132860576,0.12509057,102780.0,102770.0,1.61243872]
[1738132864018,0.12509057,102780.0,102770.0,1.62205799]
[1738132865628,0.12409057,102780.0,102770.0,1.62205799]
[1738132866398,0.12409057,102780.0,102770.0,1.62305799]
[1738132866547,0.12409057,102780.0,102770.0,1.62405799]
[1738132866743,0.12409057,102780.0,102770.0,1.62305799]
[1738132867295,0.12409057,102780.0,102770.0,1.62405799]
[1738132867654,0.12409057,102780.0,102770.0,1.62305799]
[1738132867866,0.12409057,102780.0,102770.0,1.62405799]
[1738132868077,0.12409057,102780.0,102770.0,1.61443872]
[1738132868283,0.12409057,102780.0,102770.0,1.60495872]
[1738132868527,0.12409057,102780.0,102770.0,1.61327872]
[1738132868726,0.12509057,102780.0,102770.0,1.61323872]
[1738132869104,0.12509057,102780.0,102770.0,1.60395872]
[1738132869444,0.12409057,102780.0,102770.0,1.20594226]
[1738132869590,0.12409057,102780.0,102770.0,1.35794226]
[1738132869994,0.12409057,102780.0,102770.0,1.50393826]
[1738132870237,0.12409057,102780.0,102770.0,1.59127872]
[1738132870699,0.12409057,102780.0,102770.0,1.61427872]
[1738132870915,0.12409057,102780.0,102770.0,1.61827872]
[1738132871083,0.12409057,102780.0,102770.0,1.61627872]
[1738132871279,0.12409057,102780.0,102770.0,1.61727872]
[1738132875040,0.12409057,102780.0,102770.0,1.62682092]
[1738132877531,0.12409057,102780.0,102770.0,1.62674092]
[1738132879132,0.12409057,102780.0,102770.0,1.62174092]
[1738132883352,0.12409057,102780.0,102770.0,1.61219872]
[1738132885244,0.12409057,102780.0,102770.0,1.61235872]
[1738132892308,0.12409057,102780.0,102770.0,1.61215872]
[1738132892738,0.12409057,102780.0,102770.0,1.51561826]
[1738132892957,0.12409057,102780.0,102770.0,1.52481826]
[1738132893158,0.12409057,102780.0,102770.0,1.51561826]
[1738132893372,0.12409057,102780.0,102770.0,1.52481826]
[1738132893527,0.12409057,102780.0,102770.0,1.51561826]
[1738132893751,0.12409057,102780.0,102770.0,1.52481826]
[1738132895933,0.12409057,102780.0,102770.0,1.49261826]
[1738132896218,0.12409057,102780.0,102770.0,1.50177826]
[1738132897498,0.12409057,102780.0,102770.0,1.35578226]
[1738132898321,0.12409057,102780.0,102770.0,1.58907872]
[1738132901860,0.12409057,102780.0,102770.0,1.44312272]
[1738132902282,0.12409057,102780.0,102770.0,1.58907872]
[1738132903549,0.12409057,102780.0,102770.0,1.58903872]
[1738132904162,0.12409057,102780.0,102770.0,1.57995872]
[1738132904371,0.12409057,102780.0,102770.0,1.58903872]
[1738132904647,0.12409057,102780.0,102770.0,1.55897998]
[1738132909229,0.12409057,102780.0,102770.0,1.41302398]
[1738132912900,0.27003257,102780.0,102770.0,1.19666226]
[1738132913068,0.12409057,102780.0,102770.0,1.20558226]
[1738132913229,0.27003257,102780.0,102770.0,1.32555538]
[1738132913435,0.12409057,102780.0,102770.0,1.3828371]
[1738132913639,0.27003257,102780.0,102770.0,1.3828371]
[1738132913865,0.12409057,102780.0,102770.0,1.3828371]
[1738132914101,0.12409057,102780.0,102770.0,1.5588712]
[1738132916734,0.12409057,102780.0,102770.0,1.4129152]
[1738132916914,0.12409057,102780.0,102770.0,1.5588712]
[1738132917253,0.12409057,102780.0,102770.0,1.4129152]
[1738132918055,0.12409057,102780.0,102770.0,1.5588712]
[1738132920739,0.12409057,102780.0,102770.0,1.5818712]
[1738132921381,0.04869057,102780.0,102770.0,1.63915292]
[1738132923543,0.00019057,102780.0,102770.0,1.63915292]
[1738132924334,0.00019057,102780.0,102770.0,1.6488706]
[1738132925595,0.00019057,102780.0,102770.0,1.6878706]
[1738132927485,0.00019057,102780.0,102770.0,2.27905232]
[1738132927715,0.00019057,102780.0,102770.0,2.2217706]
[1738132929282,0.00019057,102780.0,102770.0,2.2177706]
[1738132929480,0.00019057,102780.0,102770.0,2.2167706]
[1738132929687,0.00019057,102780.0,102770.0,2.2297706]
[1738132930024,0.00019057,102780.0,102770.0,2.2207706]
[1738132930205,0.00019057,102780.0,102770.0,2.2217706]
[1738132930349,0.00019057,102780.0,102770.0,2.30441876]
[1738132931440,0.0156459,102790.0,102780.0,0.173]
[1738132931645,0.0156459,102790.0,102780.0,2.57090497]
[1738132931882,0.0156459,102790.0,102780.0,2.56993221]
[1738132932086,0.0156459,102790.0,102780.0,2.62721393]
[1738132932506,0.0156459,102790.0,102780.0,2.56993221]
[1738132932798,0.0166459,102790.0,102780.0,2.56993221]
[1738132933500,0.0988459,102790.0,102780.0,2.56993221]
[1738132933734,0.1451459,102790.0,102780.0,2.57917221]
[1738132934589,0.1451459,102790.0,102780.0,2.5518695]
[1738132934802,0.1451459,102790.0,102780.0,2.5288695]
[1738132935188,0.1451459,102790.0,102780.0,2.5518695]
[1738132938246,0.1448459,102790.0,102780.0,2.5518695]
[1738132942318,0.1448459,102790.0,102780.0,2.63913023]
[1738132942535,0.00104,102820.0,102790.0,0.072]
[1738132942747,0.01,102840.0,102820.0,0.338886]
[1738132942957,0.01,102840.0,102830.0,0.82008644]
[1738132943177,0.01,102840.0,102830.0,0.9250411]
[1738132943178,0.01014489,102840.0,102830.0,0.9250411]
[1738132943402,0.00707492,102840.0,102830.0,1.4650411]
[1738132943611,0.00707492,102840.0,102830.0,1.70604592]
[1738132943793,0.00707492,102840.0,102830.0,1.72604592]
[1738132944010,0.00707492,102840.0,102830.0,1.75659177]
[1738132944222,0.00707492,102840.0,102830.0,1.76595177]
[1738132944424,0.27854422,102850.0,102840.0,0.40611773]
[1738132944637,0.27854422,102850.0,102840.0,2.80087422]
[1738132944846,0.27854422,102850.0,102840.0,2.73618373]
[1738132945001,0.35624422,102850.0,102840.0,2.72999389]
[1738132945223,0.35624422,102850.0,102840.0,2.61973316]
[1738132945442,0.35624422,102850.0,102840.0,2.68631579]
[1738132945762,0.35624422,102850.0,102840.0,2.67691579]
[1738132945967,0.35624422,102850.0,102840.0,2.30315806]
[1738132946120,0.54718722,102850.0,102840.0,2.30315806]
[1738132946324,0.54718722,102850.0,102840.0,2.30415806]
[1738132946524,0.54718722,102850.0,102840.0,2.45415806]
[1738132946728,0.54718722,102850.0,102840.0,2.30415806]
[1738132947823,0.46003874,102850.0,102840.0,2.45411806]
[1738132948172,0.46003874,102850.0,102840.0,2.44379806]
[1738132948368,0.46003874,102850.0,102840.0,2.45311806]
[1738132948570,0.46103874,102850.0,102840.0,2.45311806]
[1738132949163,0.46103874,102850.0,102840.0,1.87015601]
[1738132949615,0.46103874,102850.0,102840.0,0.55248016]
[1738132949785,0.46103874,102850.0,102840.0,0.68698405]
[1738132949957,0.46103874,102850.0,102840.0,2.15585956]
[1738132950156,0.46118104,102850.0,102840.0,2.15585956]
[1738132950357,0.46118104,102850.0,102840.0,2.40316236]
[1738132950658,0.31533804,102850.0,102840.0,2.40316236]
[1738132950870,0.31533804,102850.0,102840.0,2.54901936]
[1738132951072,0.31533804,102850.0,102840.0,2.64528009]
[1738132951219,0.31533804,102850.0,102840.0,2.41216236]
[1738132951667,0.46118104,102850.0,102840.0,2.41216236]
[1738132951783,0.46018104,102850.0,102840.0,2.41216236]
[1738132951994,0.26923804,102850.0,102840.0,2.64528009]
[1738132952328,0.26923804,102850.0,102840.0,2.64828009]
[1738132952747,0.26923804,102850.0,102840.0,2.56101936]
[1738132952909,0.26923804,102850.0,102840.0,2.41516236]
[1738132953295,0.41508104,102850.0,102840.0,2.40616236]
[1738132953403,0.41508104,102850.0,102840.0,2.39784236]
[1738132953604,0.41508104,102850.0,102840.0,2.31986163]
[1738132953825,0.41508104,102850.0,102840.0,2.40712236]
[1738132954031,0.41508104,102850.0,102840.0,2.31986163]
[1738132954234,0.41508104,102850.0,102840.0,2.31058163]
[1738132954447,0.41508104,102850.0,102840.0,2.40712236]
[1738132954646,0.41508104,102850.0,102840.0,2.40812236]
[1738132954850,0.41508104,102850.0,102840.0,2.40412236]
[1738132955176,0.41508104,102850.0,102840.0,1.83020031]
[1738132955423,0.46078104,102850.0,102840.0,1.83848031]
[1738132955665,0.46078104,102850.0,102840.0,0.85898612]
[1738132956235,0.46078104,102850.0,102840.0,0.76168332]
[1738132956675,0.46078104,102850.0,102840.0,0.66444016]
[1738132956896,0.46078104,102850.0,102840.0,0.51444016]
[1738132957507,0.46078104,102850.0,102840.0,0.65516016]
[1738132958487,0.54804177,102850.0,102840.0,0.65516016]
[1738132958726,0.54804177,102850.0,102840.0,0.50516016]
[1738132958928,0.55804177,102850.0,102840.0,0.50516016]
[1738132959718,0.65539853,102850.0,102840.0,0.50516016]
[1738132960536,0.55804177,102850.0,102840.0,0.50516016]
[1738132960741,0.55804177,102850.0,102840.0,0.50216016]
[1738132960963,0.55804177,102850.0,102840.0,0.49316016]
[1738132961164,0.55804177,102850.0,102840.0,0.50116016]
[1738132961372,0.75554566,102850.0,102840.0,0.40391078]
[1738132961571,0.85290242,102850.0,102840.0,0.26034646]
[1738132961740,0.85290242,102850.0,102840.0,0.21145046]
[1738132961938,0.85290242,102850.0,102840.0,0.19400246]
[1738132962188,0.85290242,102850.0,102840.0,4.6e-07]
[1738132962410,0.0873,102820.0,102800.0,0.00936]
[1738132962616,0.145928,102790.0,102780.0,0.98279302]
[1738132962735,0.23318873,102790.0,102780.0,0.09754199]
[1738132962941,0.23318873,102790.0,102780.0,0.20429339]
[1738132963168,0.23318873,102790.0,102780.0,0.00029883]
[1738132963169,0.31048873,102790.0,102780.0,0.00029883]
[1738132963370,0.41774946,102790.0,102780.0,0.00029883]
[1738132963570,0.155942,102780.0,102770.0,0.04730632]
[1738132963770,0.145985,102750.0,102740.0,0.00158841]
[1738132963998,0.23324573,102750.0,102740.0,0.0017333]
[1738132964215,0.145985,102750.0,102740.0,0.09897646]
[1738132964416,0.535258,102760.0,102740.0,0.09897646]
[1738132964619,0.340616,102760.0,102750.0,0.09724316]
[1738132964859,0.340581,102770.0,102750.0,0.09724316]
[1738132965265,0.535202,102770.0,102750.0,0.09724316]
[1738132965531,0.340576,102770.0,102750.0,0.34461866]
[1738132966308,0.340576,102770.0,102760.0,0.1598]
[1738132966655,0.43083673,102770.0,102760.0,0.25704316]
[1738132967031,0.343576,102770.0,102760.0,0.25704316]
[1738132967399,0.340576,102770.0,102760.0,0.25704316]
[1738132967595,0.535152,102780.0,102760.0,0.26204316]
[1738132967850,0.145956,102770.0,102760.0,0.26204316]
[1738132968293,0.145956,102770.0,102760.0,0.26404316]
[1738132969050,0.144666,102770.0,102760.0,0.25904316]
[1738132969494,0.144666,102770.0,102760.0,0.26104316]
[1738132969690,0.144666,102770.0,102760.0,0.25904316]
[1738132969840,0.144666,102770.0,102760.0,1.24153735]
[1738132970238,0.23192673,102770.0,102760.0,0.25424316]
[1738132970440,0.3086346,102770.0,102760.0,0.007]
[1738132970911,0.23192673,102770.0,102760.0,0.007]
[1738132971844,0.24192673,102770.0,102760.0,0.007]
[1738132972486,0.23192673,102770.0,102760.0,0.007]
[1738132973118,0.23192673,102770.0,102760.0,0.00729883]
[1738132973315,0.23206903,102770.0,102760.0,0.00729883]
[1738132973616,0.30387656,102770.0,102760.0,0.00729883]
[1738132975155,0.23206903,102770.0,102760.0,0.00729883]
[1738132975377,0.23206903,102770.0,102760.0,0.00229883]
[1738132975791,0.23206903,102770.0,102760.0,0.00429883]
[1738132976551,0.24164773,102770.0,102760.0,0.00229883]
[1738132976753,0.24164773,102770.0,102760.0,0.00329883]
[1738132977346,0.24164773,102770.0,102760.0,0.00229883]
[1738132977559,0.33900449,102770.0,102760.0,0.00329883]
[1738132977765,0.24164773,102770.0,102760.0,0.00329883]
[1738132980052,0.26114809,102770.0,102760.0,0.00329883]
[1738132982648,0.17388736,102770.0,102760.0,0.00329883]
[1738132984693,0.27114809,102770.0,102760.0,0.00329883]
[1738132985525,0.27114809,102770.0,102760.0,0.00129883]
[1738132985726,0.38950485,102770.0,102760.0,0.00129883]
[1738132986147,0.38950485,102770.0,102760.0,0.00029883]
[1738132987271,0.37950485,102770.0,102760.0,0.00029883]
[1738132987520,0.45674801,102770.0,102760.0,0.00029883]
[1738132990005,0.47974801,102770.0,102760.0,0.00029883]
[1738132990204,0.52504801,102770.0,102760.0,0.00029883]
[1738132990614,0.60004801,102770.0,102760.0,0.00029883]
[1738132990780,0.68730874,102770.0,102760.0,8.3e-07]
[1738132991226,0.83730874,102770.0,102760.0,8.3e-07]
[1738132991881,0.221185,102750.0,102740.0,0.0004433]
[1738132992087,0.023,102740.0,102730.0,0.04178572]
[1738132992299,0.35350289,102740.0,102730.0,0.04226885]
[1738132992549,0.01,102720.0,102710.0,0.01696529]
[1738132992751,0.14607,102690.0,102680.0,0.1271]
[1738132992955,0.14607,102690.0,102680.0,0.25264806]
[1738132993384,0.23333073,102690.0,102680.0,0.14584316]
[1738132993622,0.14607,102690.0,102680.0,0.14584316]
[1738132994032,0.14607,102690.0,102680.0,0.14589143]
[1738132994236,0.14607,102690.0,102680.0,0.14789143]
[1738132994491,0.340817,102700.0,102680.0,0.4213944]
[1738132994697,0.14607,102690.0,102680.0,0.17806924]
[1738132995330,0.14607,102690.0,102680.0,0.29809907]
[1738132995538,0.14607,102690.0,102680.0,0.33108241]
[1738132995653,0.14607,102690.0,102680.0,0.42932557]
[1738132996129,0.340812,102700.0,102690.0,0.15]
[1738132996315,0.340812,102700.0,102690.0,0.24724316]
[1738132996454,0.340812,102700.0,102690.0,0.27722385]
[1738132996871,0.146061,102700.0,102690.0,0.27722385]
[1738132997077,0.53552,102710.0,102690.0,0.61805085]
[1738132997294,0.340785,102710.0,102700.0,0.09724316]
[1738132997512,0.340785,102710.0,102700.0,0.2474296]
[1738132997726,0.340785,102710.0,102700.0,0.34467276]
[1738132998150,0.146051,102710.0,102700.0,0.34467276]
[1738132998351,0.146051,102710.0,102700.0,0.37465865]
[1738132998552,0.146051,102710.0,102700.0,0.38397865]
[1738132999361,0.3160127,102710.0,102700.0,0.38397865]
[1738132999601,0.22875197,102710.0,102700.0,0.35399276]
[1738132999825,0.3160127,102710.0,102700.0,0.35399276]
[1738133000058,0.3160127,102710.0,102700.0,0.25656316]
[1738133000272,0.146051,102710.0,102700.0,0.25656316]
[1738133000477,0.147051,102710.0,102700.0,0.25656316]
[1738133000781,0.147051,102710.0,102700.0,0.2865402]
[1738133001848,0.147051,102710.0,102700.0,0.3839754]
[1738133002505,0.147051,102710.0,102700.0,0.18929704]
[1738133002700,0.33166849,102710.0,102700.0,0.17997704]
[1738133002901,0.24440776,102710.0,102700.0,0.17997704]
[1738133003308,0.24440776,102710.0,102700.0,0.15]
[1738133003868,0.33166849,102710.0,102700.0,0.15]
[1738133004276,0.14607,102690.0,102680.0,1.13782396]
[1738133004475,0.14607,102690.0,102680.0,1.25581123]
[1738133004772,0.14607,102690.0,102680.0,1.26505123]
[1738133005011,0.14607,102690.0,102680.0,1.41505123]
[1738133005525,0.14607,102690.0,102680.0,1.41705123]
[1738133005710,0.14607,102690.0,102680.0,1.41701123]
[1738133005908,0.14607,102690.0,102680.0,1.40781123]
[1738133006508,0.14607,102690.0,102680.0,1.41281123]
[1738133007528,0.14607,102690.0,102680.0,1.41311027]
[1738133012766,0.14607,102690.0,102680.0,1.90004027]
[1738133013785,0.14607,102690.0,102680.0,1.90908027]
[1738133014457,0.22363713,102700.0,102690.0,0.15]
[1738133014664,0.36969313,102700.0,102690.0,0.73414316]
[1738133015732,0.36969313,102700.0,102690.0,0.73514316]
[1738133017060,0.36969313,102700.0,102690.0,0.73714316]
[1738133017755,0.56431062,102700.0,102690.0,0.6399]
[1738133018686,0.56431062,102700.0,102690.0,0.6389]
[1738133019103,0.55431062,102700.0,102690.0,0.6389]
[1738133019732,0.55431062,102700.0,102690.0,0.6369]
[1738133019946,0.56431062,102700.0,102690.0,0.6369]
[1738133020287,0.56531062,102700.0,102690.0,0.6369]
[1738133020487,0.56431062,102700.0,102690.0,0.6369]
[1738133020695,0.56531062,102700.0,102690.0,0.6369]
[1738133021523,0.56431062,102700.0,102690.0,0.6369]
[1738133021826,0.37069313,102700.0,102690.0,0.6369]
[1738133022031,0.46795386,102700.0,102690.0,0.6369]
[1738133024019,0.37069313,102700.0,102690.0,0.6369]
[1738133030584,0.37069313,102700.0,102690.0,0.63719904]
[1738133030764,0.37083553,102700.0,102690.0,0.63719904]
[1738133035861,0.37083553,102700.0,102690.0,0.7344422]
[1738133039160,0.37083553,102700.0,102690.0,0.76463583]
[1738133039940,0.1471984,102700.0,102690.0,0.91070583]
[1738133040711,0.1461984,102700.0,102690.0,0.91070583]
[1738133040918,0.0011424,102700.0,102690.0,0.91070583]
[1738133041073,0.0011424,102700.0,102690.0,1.40564715]
[1738133041278,0.1461984,102700.0,102690.0,1.40564715]
[1738133041483,0.1461984,102700.0,102690.0,0.92126583]
[1738133041680,0.1461984,102700.0,102690.0,0.77519583]
[1738133041870,0.1461984,102700.0,102690.0,0.92126583]
[1738133043579,0.1461984,102700.0,102690.0,0.92226583]
[1738133043764,0.1461984,102700.0,102690.0,0.92222583]
[1738133045001,0.0001424,102700.0,102690.0,0.92218583]
[1738133045248,0.1461984,102700.0,102690.0,0.92218583]
[1738133045427,0.1461984,102700.0,102690.0,0.77611583]
[1738133048454,0.1461984,102700.0,102690.0,0.7459222]
[1738133052138,0.1461984,102700.0,102690.0,0.8918722]
[1738133052868,0.1461984,102700.0,102690.0,0.92203791]
[1738133053098,0.1461984,102700.0,102690.0,0.91367791]
[1738133053337,0.1461984,102700.0,102690.0,0.92203791]
[1738133053575,0.1461984,102700.0,102690.0,0.77596791]
[1738133054377,0.1461984,102700.0,102690.0,0.92203791]
[1738133061983,0.23345913,102700.0,102690.0,0.76760791]
[1738133062168,0.24355516,102700.0,102690.0,0.7374422]
[1738133062464,0.1461984,102700.0,102690.0,0.7374422]
[1738133064013,0.1461984,102700.0,102690.0,0.8835122]
[1738133064215,0.1461984,102700.0,102690.0,0.9136818]
[1738133065992,0.1461984,102700.0,102690.0,0.7676118]
[1738133067468,0.1461984,102700.0,102690.0,0.7374422]
[1738133067866,0.41881589,102700.0,102690.0,0.64019904]
[1738133068071,0.41881589,102700.0,102690.0,0.49019904]
[1738133068693,0.41881589,102700.0,102690.0,0.48919904]
[1738133068912,0.41881589,102700.0,102690.0,0.48719904]
[1738133069335,0.41981589,102700.0,102690.0,0.48719904]
[1738133069595,0.41881589,102700.0,102690.0,0.48719904]
[1738133069794,0.41981589,102700.0,102690.0,0.48719904]
[1738133070945,0.43981589,102700.0,102690.0,0.48719904]
[1738133072042,0.45916175,102700.0,102690.0,0.48719904]
[1738133072622,0.44916175,102700.0,102690.0,0.48719904]
[1738133072828,0.65666564,102700.0,102690.0,0.48719904]
[1738133073079,0.63666564,102700.0,102690.0,0.48719904]
[1738133074127,0.73916564,102700.0,102690.0,0.48719904]
[1738133074326,0.63666564,102700.0,102690.0,0.48719904]
[1738133078551,0.54940491,102700.0,102690.0,0.48719904]
[1738133078903,0.63631381,102700.0,102690.0,0.48719904]
[1738133079129,0.72357454,102700.0,102690.0,0.48719904]
[1738133079831,0.63631381,102700.0,102690.0,0.48719904]
[1738133081435,0.64631381,102700.0,102690.0,0.48719904]
[1738133081636,0.61331381,102700.0,102690.0,0.48719904]
[1738133082060,0.52607065,102700.0,102690.0,0.48719904]
[1738133085084,0.43916175,102700.0,102690.0,0.48719904]
[1738133086213,0.36116175,102700.0,102690.0,0.48719904]
[1738133086586,0.38873854,102700.0,102690.0,0.48719904]
[1738133093418,0.388496,102700.0,102690.0,0.48719904]
[1738133093908,0.44591476,102700.0,102690.0,0.48719904]
[1738133094560,0.388496,102700.0,102690.0,0.48719904]
[1738133094912,0.44591476,102700.0,102690.0,0.48719904]
[1738133095736,0.388496,102700.0,102690.0,0.48719904]
[1738133095937,0.31113924,102700.0,102690.0,0.48719904]
[1738133096353,0.29113924,102700.0,102690.0,0.48719904]
[1738133099171,0.22372048,102700.0,102690.0,0.56929904]
[1738133099393,0.28113924,102700.0,102690.0,0.56929904]
[1738133100291,0.22372048,102700.0,102690.0,0.6665422]
[1738133100504,0.22372048,102700.0,102690.0,0.8620422]
[1738133100708,0.20437462,102700.0,102690.0,1.0081122]
[1738133100913,0.20437462,102700.0,102690.0,1.0161522]